[Event "GER-ch Youth-ODJM 2022"]
[Site "Willingen"]
[Date "2022.06.07"]
[Round "4.20"]
[White "Pick, Max"]
[Black "Savchenko, Daniel"]
[Result "1/2-1/2"]
[ECO "D02"]
[WhiteElo "1841"]
[BlackElo "2134"]
[Annotator "TA"]
[PlyCount "60"]
[EventDate "2022.06.05"]
[EventType "swiss"]
[EventRounds "9"]
[EventCountry "GER"]
[SourceTitle "playchess.com"]
[Source "ChessBase"]
[SourceQuality "1"]
[TimeControl "40/4500+30:900+30"]

{[%evp 11,60,2,2,0,17,14,39,0,-9,-14,20,0,0,-161,-177,-177,-136,-129,-133,-171,-135,-104,-64,-181,-183,-290,-223,-240,-254,-259,-236,-239,-79,-99,-85,-109,-53,-196,-39,-195,-71,-352,-158,-198,-195,-223,-222,-29989,-149,-211,-104]} 1. d4 {[%emt 0:00:00]} d5 {[%emt 0:00:00]} 2. Nf3 {[%emt 0:00:00]} Nf6 {[%emt 0:00:00]} 3. Bf4 {[%emt 0:00:00]} e6 {[%emt 0:00:00]} 4. e3 {[%emt 0:00:00]} Be7 {[%emt 0:00:00]} 5. Bd3 {[%emt 0:00:00]} O-O {[%emt 0:00:00]} 6. Nbd2 {[%emt 0:00:00]} b6 {[%emt 0:00:00]} 7. O-O {[%emt 0:00:00] D02: 1 d4 d5 2 Nf3 sidelines, including 2...Nf6 3 g3 and 2...Nf6 3 Bf4.} (7. Ne5 {seems wilder.} Nfd7 8. O-O c5 9. Ndf3) 7... Nbd7 {[%emt 0:00:00]} 8. Ne5 {[%emt 0:00:00]} Bb7 {[%emt 0:00:00] Prevents Nc6.} 9. Bb5 {[%emt 0:06:46]} (9. Qf3 $14) 9... Nxe5 $11 {[%emt 0:02:27] [#]} 10. dxe5 $146 {[%emt 0:05:18]} ({Predecessor:} 10. Bxe5 Qc8 11. c3 c6 12. Bd3 Ba6 13. c4 Qd7 14. b3 Rfc8 15. Rc1 Qd8 16. Qf3 {1-0 (27) Mosny,J (1880)-Lazniewska,Z (1568) Liptovsky Jan 2021}) 10... Ne8 {[%emt 0:10:01]} 11. Bd3 {[%emt 0:06:43]} (11. Qg4 {is interesting.} g6 12. Bh6 Ng7 13. c3) 11... f5 {[%emt 0:03:28]} 12. g4 $2 {[%emt 0:17:27]} (12. exf6 $11 {and White is okay.} Nxf6 13. Qf3) 12... g5 $19 {[%emt 0:04:29]} 13. gxf5 {[%emt 0:01:58][%cal Of5f6]} exf5 {[%emt 0:01:29]} 14. Bg3 {[%emt 0:01:05]} Ng7 {[%emt 0:01:39] Threatens to win with ...f4.} 15. h3 {[%emt 0:11:45]} Qd7 {[%emt 0:06:30]} 16. f4 {[%emt 0:05:08]} c5 {[%emt 0:03:53]} 17. Kh1 {[%emt 0:06:17]} (17. Kh2 $15) 17... Kh8 {[%emt 0:02:44] aiming for ...d4+.} 18. Be2 {[%emt 0:00:45]} (18. Kh2 $142) 18... Rad8 {[%emt 0:08:10]} 19. Bf3 Ne6 {[%emt 0:00:44]} 20. Qe2 {[%emt 0:04:35]} d4 {[%emt 0:05:46] White must now prevent ...dxe3.} 21. Rad1 {[%emt 0:02:18]} gxf4 $2 {[%emt 0:09:25]} (21... dxe3 22. Qxe3 gxf4 23. Bxf4) (21... Rg8 $19 {is more deadly. And now ...dxe3 would win.} 22. Nc4 gxf4 23. Bxf4 b5) 22. exf4 $17 {[%emt 0:00:59]} Rg8 {[%emt 0:01:29]} 23. Rg1 {[%emt 0:02:46] [#]} b5 {[%emt 0:05:24]} ({Better is} 23... Rxg3 $1 $17 {[%mdl 512]} 24. Rxg3 Nxf4) 24. Qd3 {[%emt 0:05:27] [#]} (24. Bxb7 $15 Qxb7+ 25. Qf3 Qxf3+ 26. Nxf3) 24... Rdf8 $2 {[%emt 0:00:49]} (24... c4 $1 $19 {[%cal Rc4d3]} 25. Qf1 (25. Qxf5 $2 Rdf8 $19) 25... c3 26. bxc3 dxc3) 25. b4 $2 {[%emt 0:02:12]} (25. Bxb7 $15 Qxb7+ 26. Qf3 Qxf3+ 27. Nxf3) 25... a6 {[%emt 0:02:47]} (25... cxb4 26. Nb3 $17) (25... c4 $19 {and Black stays clearly on top.} 26. Qf1 Bxb4 27. Bxb7 Qxb7+ 28. Qf3 Qxf3+ 29. Nxf3 Bc5) 26. c3 $2 {[%emt 0:00:36][%mdl 8192]} (26. bxc5 $17 Nxc5 27. Qe2) 26... Qc8 {[%emt 0:04:29]} ({Inferior is} 26... cxb4 27. cxd4 Bd5 28. Rc1 $15) (26... c4 $19 {has better winning chances.} 27. Qc2 d3) 27. cxd4 {[%emt 0:01:31]} Nxd4 {[%emt 0:00:31]} 28. Bxb7 {[%emt 0:01:39]} Qxb7+ {[%emt 0:07:15]} 29. Qf3 $2 {[%emt 0:02:48]} (29. Kh2 $19 Rd8 30. Qe3 (30. Bf2 $2 c4 $17)) 29... Qc7 $2 {[%emt 0:02:15]} (29... Nxf3 {mates} 30. Nxf3 Qxf3+ 31. Kh2 Qe2+ 32. Kh1 {[#]} Rxg3 $1 {[%mdl 512]} 33. Rxg3 Qxd1+ 34. Kh2 Bh4 35. Rg1 Qf3 36. e6 Rd8 37. Re1 Rd2+ 38. Re2 Rxe2+ 39. Kg1 Qg2#) 30. Qh5 {[%emt 0:00:51]} ({But not} 30. Qd5 $2 Ne2 31. Qf3 Nxg1 32. Rxg1 cxb4 $19) (30. Qe3 $17 {is a better defense.}) 30... Ne6 {[%emt 0:01:05] Weighted Error Value: White=0.91/Black=0.66} (30... cxb4 $19 31. Bh4 Bxh4 32. Qxh4 Qf7) 1/2-1/2

[Event "GER-ch Youth-ODJM 2022"]
[Site "Willingen"]
[Date "2022.06.07"]
[Round "4.21"]
[White "Garbuz, Nicole"]
[Black "Dornieden, Jonas"]
[Result "0-1"]
[ECO "B21"]
[WhiteElo "1824"]
[BlackElo "2072"]
[Annotator "TA"]
[PlyCount "78"]
[EventDate "2022.06.05"]
[EventType "swiss"]
[EventRounds "9"]
[EventCountry "GER"]
[SourceTitle "playchess.com"]
[Source "ChessBase"]
[SourceQuality "1"]
[TimeControl "40/4500+30:900+30"]

{[%evp 13,78,-21,-19,-38,-35,-44,-47,-60,-25,-79,-85,-81,-77,-74,-86,-81,-62,-72,-65,-80,-83,-93,-58,-79,-80,-123,-126,-121,-128,-120,-127,-104,-108,-89,-88,-175,-67,-80,-84,-77,-33,-34,0,-44,74,49,10,-15,-12,-100,-89,-333,-394,-334,0,-210,-197,-460,-483,-450,-456,-433,-416,-375,-220,-781,-731]} 1. e4 {[%emt 0:00:00]} c5 {[%emt 0:00:00]} 2. d4 {[%emt 0:00:00]} cxd4 {[%emt 0:00:00]} 3. c3 {[%emt 0:00:00]} dxc3 {[%emt 0:00:00]} 4. Nxc3 {[%emt 0:00:00]} e6 {[%emt 0:00:00]} 5. Bc4 {[%emt 0:00:00]} Nc6 {[%emt 0:00:00]} 6. Nf3 {[%emt 0:00:00]} Bb4 {[%emt 0:00:00]} 7. O-O {[%emt 0:00:00]} Nge7 $1 {[%emt 0:00:00] The main line 7...Nge7 scores better than 7...Bxc3.} 8. Bg5 {[%emt 0:01:45] B21: Sicilian: 2 f4 and Morra Gambit.} h6 {[%emt 0:00:00]} 9. Be3 {[%emt 0:03:10]} O-O {[%emt 0:00:00]} 10. Rc1 {[%emt 0:03:27] [#] Black is slightly better.} Ng6 $146 {[%emt 0:08:33]} (10... f5 $5 {[%cal Rf5e4]} 11. e5 Ng6 $15) ({Predecessor:} 10... Bxc3 11. Rxc3 d5 12. Bd3 d4 13. Rxc6 Nxc6 14. Bf4 f6 15. e5 fxe5 16. Bg3 Qd5 {0-1 (28) Tymrakiewicz,R (2236)-Preotu,R (2487) Chess.com INT 2021}) 11. Bb3 {[%emt 0:08:10]} (11. a3 $11 {remains equal.} Be7 12. Qd2) 11... b6 $17 {[%emt 0:08:09]} 12. Qe2 {[%emt 0:03:58]} Bb7 {[%emt 0:05:01]} 13. Rfd1 {[%emt 0:00:22]} Qe7 {[%emt 0:01:09]} 14. a3 {[%emt 0:11:18]} Bxc3 {[%emt 0:01:40]} 15. Rxc3 {[%emt 0:00:10]} Rfd8 {[%emt 0:05:29]} 16. Ba4 {[%emt 0:08:52]} Rac8 {[%emt 0:03:51]} 17. Rdc1 {[%emt 0:15:15]} Qe8 {[%emt 0:03:20]} 18. b4 {[%emt 0:02:30]} Nce7 {[%emt 0:02:27] Hoping for ...Rxc3.} 19. Rc7 {[%emt 0:01:16]} Bxe4 {[%emt 0:09:33]} 20. Rxa7 {[%emt 0:03:15]} Rxc1+ {[%emt 0:00:49]} 21. Bxc1 {[%emt 0:00:05]} Bc6 {[%emt 0:10:27]} 22. b5 {[%emt 0:09:14]} Bxf3 {[%emt 0:02:20]} 23. Qxf3 {[%emt 0:00:07]} d5 {[%emt 0:03:23]} 24. Qd3 {[%emt 0:03:31]} (24. Bb2 $17) 24... Ra8 {[%emt 0:04:42]} ({Black should try} 24... Nf5 $19 25. Qd1 Nd6) 25. Rxa8 $15 {[%emt 0:00:12]} Qxa8 {[%emt 0:00:04]} 26. Bc2 {[%emt 0:01:47]} Qd8 {[%emt 0:02:56]} 27. a4 {[%emt 0:02:20]} e5 {[%emt 0:01:18]} 28. Qe3 {[%emt 0:04:41][%cal Oa4a5]} f5 {[%emt 0:06:33]} (28... Qc8 $15 {stays ahead.} 29. Qb3 Nf5) 29. Bb2 $16 {[%emt 0:01:27][%mdl 1024] White has strong compensation.} d4 {[%emt 0:01:19][%cal Bd5d4,Bd4d3][%mdl 32]} 30. Qg3 {[%emt 0:01:37][%cal Oa4a5]} Nf4 {[%emt 0:02:08]} 31. Kf1 {[%emt 0:00:28] Inhibits Ne2.} (31. Qb3+ $11 Kh7 32. g3) 31... Kh8 {[%emt 0:01:12] [#] aiming for ...Qd5.} 32. Bc1 $2 {[%emt 0:01:05]} (32. Qf3 $17) 32... d3 $19 {[%emt 0:01:40]} 33. Bd1 {[%emt 0:00:12]} Neg6 {[%emt 0:01:41]} (33... d2 $19 34. Bb2 Qd5) 34. Qe3 {[%emt 0:00:59]} (34. Bxf4 $11 Nxf4 35. Qf3) 34... Qd5 $40 {[%emt 0:01:25][%mdl 128] Black wants a kill.} 35. Bf3 $2 {[%emt 0:00:24]} (35. f3) 35... Qc4 {[%emt 0:00:31] [#] ( -> ...d2+)} 36. Qd2 {[%emt 0:01:01]} e4 {[%emt 0:00:37][%cal Be5e4,Be4e3][%mdl 32]} 37. Bd1 {[%emt 0:00:16]} Nd5 {[%emt 0:00:14] White must now prevent ...f4.} 38. Bb2 {[%emt 0:00:36] Intending Qxh6+ and mate.} f4 {[%emt 0:00:34]} (38... Kh7 $142 {And now ...f4 would win.} 39. Ba1 Ngf4) 39. Bh5 $2 {[%emt 0:00:40]} (39. Qc1 Qb4 40. Ba3) 39... e3 {[%emt 0:00:43] Weighted Error Value: White=0.74/Black=0.29 (precise)} 0-1

[Event "GER-ch Youth-ODJM 2022"]
[Site "Willingen"]
[Date "2022.06.07"]
[Round "4.22"]
[White "Bartelt, Max Peter"]
[Black "Kesselmeier, Kevin"]
[Result "1-0"]
[ECO "D00"]
[WhiteElo "1959"]
[BlackElo "1927"]
[Annotator "TA"]
[PlyCount "51"]
[EventDate "2022.06.05"]
[EventType "swiss"]
[EventRounds "9"]
[EventCountry "GER"]
[SourceTitle "playchess.com"]
[Source "ChessBase"]
[SourceQuality "1"]
[TimeControl "40/4500+30:900+30"]

{[%evp 9,51,-60,-56,-146,-139,-287,-19,-54,-62,-48,-56,-60,-75,-57,-63,-62,37,23,57,-39,22,29,17,31,76,75,75,74,112,94,86,82,87,90,175,177,254,266,603,600,610,610,568,481]} 1. d4 {[%emt 0:00:00]} d5 {[%emt 0:00:00]} 2. Bg5 {[%emt 0:00:00]} f6 {[%emt 0:00:00]} 3. Bh4 {[%emt 0:00:00]} Nh6 {[%emt 0:00:00]} 4. e3 {[%emt 0:00:00]} Nf5 {[%emt 0:00:00]} 5. Bg3 {[%emt 0:00:00]} h5 $1 {[%emt 0:15:45]} 6. Bd3 {[%emt 0:00:00] D00: 1 d4 d5: Unusual lines.} (6. Be2 $15) 6... h4 $17 {[%emt 0:15:38]} 7. Qg4 {[%emt 0:00:25] [#]} (7. Qf3 $17 e6 8. Bf4) 7... hxg3 $2 {[%emt 0:12:18]} (7... Nd6 $1 $19 8. Qg6+ Nf7) 8. Qg6+ {[%emt 0:01:58] The position is equal.} Kd7 {[%emt 0:00:10][%cal Oh8h2]} 9. Bxf5+ {[%emt 0:01:33]} e6 {[%emt 0:11:42] [#]} 10. Qf7+ $146 {[%emt 0:01:29]} ({Predecessor:} 10. Bh3 gxf2+ 11. Kxf2 Qe8 12. Qd3 c6 13. c4 Kd8 14. e4 Qg6 15. Nc3 Bd6 16. g3 {1-0 (46) Huerta,D (2291)-Blanco Fernandez,A (2383) Mexico City 2006}) 10... Kd6 {[%emt 0:10:56]} 11. Bh3 {[%emt 0:00:37]} gxf2+ {[%emt 0:03:29]} 12. Kxf2 {[%emt 0:00:11][%cal Oc2c4]} Bd7 {[%emt 0:05:04]} (12... g5 $15) 13. c4 $1 $36 {[%emt 0:01:52][%mdl 2048] White is more active.} dxc4 {[%emt 0:03:34]} 14. Nc3 {[%emt 0:01:31]} ({White should try} 14. Na3 $14) 14... c6 {[%emt 0:03:06]} (14... Qe7 $15 15. Qg6 c6) 15. Ne4+ $11 {[%emt 0:00:53]} Kc7 {[%emt 0:00:05] [#] aiming for ...Qe7.} 16. Bxe6 {[%emt 0:04:28][%cal Bh3e6,Be6c4,Bc4e2][%mdl 32]} Qe7 {[%emt 0:00:11]} 17. Qxe7 {[%emt 0:00:42] 0x0.0022fa006562dp-1022s more active pieces. The black rooks are badly placed.} Bxe7 {[%emt 0:00:07]} 18. Bxc4 {[%emt 0:00:14]} Rh4 {[%emt 0:01:17]} 19. Nc3 {[%emt 0:00:33][%cal Be4c3,Bc3d5,Bd5c7][%mdl 32]} Bg4 {[%emt 0:00:44]} 20. Rc1 {[%emt 0:01:43]} Nd7 {[%emt 0:00:25]} 21. Be2 {[%emt 0:00:28] Hoping for g3.} Be6 {[%emt 0:00:32]} (21... f5 $16 {might work better.}) 22. Nf3 $18 {[%emt 0:00:18]} Rh6 {[%emt 0:00:43]} (22... Rh5 $142 23. Rhd1 Nb6) 23. d5 {[%emt 0:00:49]} cxd5 {[%emt 0:00:38]} (23... Bg8 24. Nd4 f5) 24. Nxd5+ {[%emt 0:00:08] White is clearly winning.} Kd8 {[%emt 0:00:05]} 25. Nc7 {[%emt 0:00:05] Pair of Knights!} Nc5 {[%emt 0:00:44]} 26. Rxc5 {[%emt 0:00:45] Weighted Error Value: White=0.25 (precise) /Black=0.51} 1-0